[Event "IM Marmaris Karia VII 2019"]
[Site "Marmaris"]
[Date "2019.05.25"]
[Round "8.2"]
[White "Papenin, Nikolai"]
[Black "Tanriverdi, Enes"]
[Result "0-1"]
[ECO "B48"]
[WhiteElo "2336"]
[BlackElo "2348"]
[Annotator "ChessBase"]
[PlyCount "45"]
[EventDate "2019.05.25"]
[EventType "schev"]
[EventCountry "TUR"]
[SourceTitle "playchess.com"]
[Source "ChessBase"]
[SourceQuality "1"]
[TimeControl "5400+30"]

1. e4 c5 2. Nf3 e6 3. d4 cxd4 4. Nxd4 Nc6 5. Nc3 Qc7 6. Be3 a6 7. Qf3 Bd6 8. O-O-O Be5 9. Nxc6 bxc6 10. Bd4 Bxd4 11. Rxd4 d5 12. exd5 cxd5 13. Bd3 Nf6 14. Re1 Bb7 15. g4 O-O 16. Qh3 Rac8 17. f4 Ne4 18. Bxe4 dxe4 19. Qe3 f5 20. gxf5 Rxf5 {[%emt 1:15:00]} 21. Red1 {[%emt 0:38:30]} Bd5 {[%emt 0:01:30]} 22. R1d2 {[%emt 0:00:30]} Rxf4 {[%emt 0:01:30]} 23. Qe2 {[%emt 0:01:30]} 0-1

[Event "IM Marmaris Karia VII 2019"]
[Site "Marmaris"]
[Date "2019.05.25"]
[Round "8.3"]
[White "Darban, Morteza"]
[Black "Alaz, Ahmet Efekan"]
[Result "0-1"]
[ECO "B12"]
[WhiteElo "2285"]
[BlackElo "2252"]
[Annotator "ChessBase"]
[PlyCount "58"]
[EventDate "2019.05.25"]
[EventType "schev"]
[EventCountry "TUR"]
[SourceTitle "playchess.com"]
[Source "ChessBase"]
[SourceQuality "1"]
[TimeControl "5400+30"]

1. e4 c6 2. d4 d5 3. e5 Bf5 4. g4 Be4 5. f3 Bg6 6. e6 Qd6 7. exf7+ Bxf7 8. f4 c5 9. c3 Nc6 10. Nf3 {[%emt 0:54:00]} Nf6 {[%emt 0:54:00]} 11. h3 {[%emt 0:00:30]} Bg6 {[%emt 0:00:30]} 12. Bb5 {[%emt 0:00:30]} Be4 {[%emt 0:02:30]} 13. O-O {[%emt 0:00:30]} e6 {[%emt 0:00:30]} 14. Qa4 {[%emt 0:07:30]} Bxf3 {[%emt 0:14:30]} 15. Rxf3 {[%emt 0:01:30]} Be7 {[%emt 0:00:30]} 16. Nd2 {[%emt 0:00:30]} O-O {[%emt 0:00:30]} 17. Nf1 {[%emt 0:00:30]} cxd4 {[%emt 0:00:30]} 18. cxd4 {[%emt 0:00:30]} Rac8 {[%emt 0:00:30]} 19. Bxc6 {[%emt 0:00:30]} Rxc6 {[%emt 0:00:30]} 20. Rc3 {[%emt 0:00:30]} Rxc3 {[%emt 0:06:52]} 21. bxc3 {[%emt 0:00:30]} Ne4 {[%emt 0:00:23]} 22. Qxa7 {[%emt 0:00:30]} Nxc3 {[%emt 0:00:16]} 23. Qxb7 {[%emt 0:00:00]} Ne2+ {[%emt 0:00:18]} 24. Kg2 {[%emt 0:00:00]} Nxc1 {[%emt 0:01:09]} 25. Rxc1 {[%emt 0:00:30]} Qxf4 {[%emt 0:00:44]} 26. Qb2 {[%emt 0:05:30]} Qf3+ {[%emt 0:01:56]} 27. Kg1 {[%emt 0:00:00]} Ba3 {[%emt 0:00:30]} 28. Qd2 {[%emt 0:01:00]} Bxc1 {[%emt 0:00:12]} 29. Qxc1 {[%emt 0:00:00]} Qf2+ {[%emt 0:00:08]} 0-1

[Event "IM Marmaris Karia VII 2019"]
[Site "Marmaris"]
[Date "2019.05.25"]
[Round "9.1"]
[White "Eminov, Orkhan"]
[Black "Papenin, Nikolai"]
[Result "1-0"]
[ECO "B51"]
[WhiteElo "2353"]
[BlackElo "2336"]
[Annotator "RC"]
[PlyCount "49"]
[EventDate "2019.05.25"]
[EventType "schev"]
[EventCountry "TUR"]
[SourceTitle "playchess.com"]
[Source "ChessBase"]
[SourceQuality "1"]
[TimeControl "5400+30"]

1. e4 {[%emt 0:00:30]} c5 {[%emt 0:00:30]} 2. Nf3 {[%emt 0:00:30]} d6 {[%emt 0:00:00]} 3. Bb5+ {[%emt 0:00:30]} Nd7 {[%emt 0:00:00]} 4. d4 {[%emt 0:00:00]} cxd4 {[%emt 0:00:30]} 5. Qxd4 {[%emt 0:00:00]} a6 {[%emt 0:00:30]} 6. Bxd7+ {[%emt 0:00:00]} Bxd7 {[%emt 0:00:00]} 7. Bg5 {[%emt 0:00:00]} h6 {[%emt 0:03:00]} 8. Bh4 {[%emt 0:00:30]} Nf6 {[%emt 0:00:30]} 9. Nc3 {[%emt 0:01:30]} g5 {[%emt 0:00:30]} 10. Bg3 {[%emt 0:00:30]} Bg7 {[%emt 0:00:30]} 11. O-O-O {[%emt 0:04:30]} O-O {[%emt 0:00:30]} 12. e5 {[%emt 0:08:30]} dxe5 {[%emt 0:00:30]} 13. Bxe5 {[%emt 0:09:30]} Bc6 {[%emt 0:00:30]} 14. Qb4 {[%emt 0:01:30]} Qe8 {[%emt 0:01:30]} 15. Nd4 {[%emt 0:25:30]} a5 {[%emt 0:07:30]} 16. Qc4 {[%emt 0:04:30]} Rc8 {[%emt 0:04:30]} 17. Qe2 {[%emt 0:02:30]} Bxg2 {[%emt 0:03:30]} 18. Rhg1 {[%emt 0:01:30]} Bh3 {[%emt 0:02:30]} 19. f4 {[%emt 0:00:30]} Rxc3 {[%emt 0:00:30]} 20. bxc3 {[%emt 0:02:30]} Qa4 {[%emt 0:13:30]} 21. fxg5 {[%emt 0:04:30]} Qa3+ {[%emt 0:03:30]} 22. Kb1 {[%emt 0:00:30]} hxg5 {[%emt 0:00:30]} 23. Rxg5 {[%emt 0:00:30]} Qxc3 {[%emt 0:00:30]} 24. Rxg7+ {[%emt 0:00:30]} Kxg7 {[%emt 0:00:30]} 25. Ne6+ {[%emt 0:00:30]} 1-0

[Event "IM Marmaris Karia VII 2019"]
[Site "Marmaris"]
[Date "2019.05.25"]
[Round "9.2"]
[White "Tanriverdi, Enes"]
[Black "Darban, Morteza"]
[Result "1-0"]
[ECO "A44"]
[WhiteElo "2348"]
[BlackElo "2285"]
[Annotator "RC"]
[PlyCount "79"]
[EventDate "2019.05.25"]
[EventType "schev"]
[EventCountry "TUR"]
[SourceTitle "playchess.com"]
[Source "ChessBase"]
[SourceQuality "1"]
[TimeControl "5400+30"]

1. d4 {[%emt 0:00:30]} c5 {[%emt 0:00:30]} 2. d5 {[%emt 0:00:00]} e5 {[%emt 0:00:30]} 3. Nc3 {[%emt 0:01:00]} d6 {[%emt 0:00:00]} 4. e4 {[%emt 0:00:00]} a6 {[%emt 0:13:00]} 5. a4 {[%emt 0:00:00]} g6 {[%emt 0:00:30]} 6. Nf3 {[%emt 0:04:30]} Bg7 {[%emt 0:00:30]} 7. Nd2 {[%emt 0:00:30]} f5 {[%emt 0:18:30]} 8. exf5 {[%emt 0:00:30]} Bxf5 {[%emt 0:00:00]} 9. Be2 {[%emt 0:00:30]} Nf6 {[%emt 0:00:00]} 10. O-O {[%emt 0:00:00]} O-O {[%emt 0:00:00]} 11. Nc4 {[%emt 0:00:00]} Ne4 {[%emt 0:18:00]} 12. Bd2 {[%emt 0:08:30]} Nxc3 {[%emt 0:09:30]} 13. Bxc3 {[%emt 0:00:00]} b6 {[%emt 0:00:00]} 14. Qd2 {[%emt 0:04:00]} Qc7 {[%emt 0:03:00]} 15. f4 {[%emt 0:04:30]} Nd7 {[%emt 0:00:30]} 16. fxe5 {[%emt 0:00:30]} Nxe5 {[%emt 0:00:30]} 17. Bxe5 {[%emt 0:05:30]} Bxe5 {[%emt 0:08:30]} 18. Nxe5 {[%emt 0:00:00]} dxe5 {[%emt 0:00:30]} 19. d6 {[%emt 0:00:00]} Qg7 {[%emt 0:02:30]} 20. Bc4+ {[%emt 0:01:30]} Kh8 {[%emt 0:00:00]} 21. Rae1 {[%emt 0:02:30]} a5 {[%emt 0:02:00]} 22. Bb5 {[%emt 0:05:30]} h5 {[%emt 0:08:32]} 23. d7 {[%emt 0:03:30]} e4 {[%emt 0:07:12]} 24. c3 {[%emt 0:01:30]} Rad8 {[%emt 0:03:32]} 25. Qd6 {[%emt 0:02:30]} Rf6 {[%emt 0:00:26]} 26. Qc7 {[%emt 0:01:30]} Qe7 {[%emt 0:02:52]} 27. h3 {[%emt 0:00:30]} Rd6 {[%emt 0:01:40]} 28. Bc6 {[%emt 0:01:30]} R8xd7 {[%emt 0:00:41]} 29. Bxd7 {[%emt 0:00:30]} Qxd7 {[%emt 0:00:10]} 30. Qxd7 {[%emt 0:00:30]} Rxd7 {[%emt 0:00:13]} 31. Rd1 {[%emt 0:00:30]} e3 {[%emt 0:00:58]} 32. Rxd7 {[%emt 0:00:00]} Bxd7 {[%emt 0:00:10]} 33. Rf6 {[%emt 0:00:00]} Kg7 {[%emt 0:00:09]} 34. Rxb6 {[%emt 0:00:30]} Bxa4 {[%emt 0:00:09]} 35. Ra6 {[%emt 0:00:00]} Bd1 {[%emt 0:01:35]} 36. Rxa5 {[%emt 0:00:00]} e2 {[%emt 0:00:09]} 37. Kf2 {[%emt 0:00:00]} c4 {[%emt 0:00:06]} 38. Rc5 {[%emt 0:00:00]} Bb3 {[%emt 0:00:26]} 39. Kxe2 {[%emt 0:00:00]} Kf6 {[%emt 0:00:08]} 40. h4 {[%emt 0:00:00]} 1-0